Workbook

Sheet Pārtikas iepirkumu saraksts
M1: =aprēķini!M9 -> PIENA PRODUKTI KOPĀ
B2: Pārtikas preču iepirkumu saraksts
C3: Pabeigts | D3: PRECE | E3: VEIKALS | F3: KATEGORIJA | G3: DAUDZ. | H3: VIENĪBA | I3: VIENĪBAS CENA | J3: KOPĀ | K3: KOMENTĀRS | M3: =aprēķini!L9 -> 37
C4: 1 | D4: Apelsīni | E4: Pārtikas preces | F4: Produkti | G4: 2 | H4: kg | I4: 2.99 EUR | J4: =IFERROR(Saraksts[DAUDZ.]*Saraksts[VIENĪBAS CENA],"") -> 5.98 EUR | M4: =aprēķini!M8 -> PRODUKTI KOPĀ
D5: Āboli | E5: Dārzs | F5: Produkti | G5: 3 | H5: kg | I5: 1.99 EUR | J5: =IFERROR(Saraksts[DAUDZ.]*Saraksts[VIENĪBAS CENA],"") -> 5.97 EUR | K5: Ir kupons | M5: =aprēķini!L8 -> 45
D6: Banāni | E6: Pārtikas preces | F6: Produkti | G6: 1 | H6: saišķis | I6: 3.99 EUR | J6: =IFERROR(Saraksts[DAUDZ.]*Saraksts[VIENĪBAS CENA],"") -> 3.99 EUR
D7: Salāti | E7: Tirgus | F7: Produkti | G7: 2 | H7: galviņa | I7: 2.29 EUR | J7: =IFERROR(Saraksts[DAUDZ.]*Saraksts[VIENĪBAS CENA],"") -> 4.58 EUR | M7: =aprēķini!M7 -> GAĻA KOPĀ
D8: Tomāti | E8: Tirgus | F8: Produkti | G8: 4 | H8: kg | I8: 3.49 EUR | J8: =IFERROR(Saraksts[DAUDZ.]*Saraksts[VIENĪBAS CENA],"") -> 13.96 EUR | M8: =aprēķini!L7 -> 80
D9: Ķirbji | E9: Tirgus | F9: Produkti | G9: 2 | H9: gab. | I9: 1.50 EUR | J9: =IFERROR(Saraksts[DAUDZ.]*Saraksts[VIENĪBAS CENA],"") -> 3.00 EUR
D10: Selerijas | E10: Pārtikas preces | F10: Produkti | G10: 2 | H10: saišķis | I10: 1.99 EUR | J10: =IFERROR(Saraksts[DAUDZ.]*Saraksts[VIENĪBAS CENA],"") -> 3.98 EUR | M10: =aprēķini!M6 -> JŪRAS VELTES KOPĀ
D11: Gurķi | E11: Tirgus | F11: Produkti | G11: 1 | H11: kg | I11: 2.29 EUR | J11: =IFERROR(Saraksts[DAUDZ.]*Saraksts[VIENĪBAS CENA],"") -> 2.29 EUR | M11: =aprēķini!L6 -> 109
D12: Sēnes | E12: Pārtikas preces | F12: Produkti | G12: 0.5 | H12: kg | I12: 2.25 EUR | J12: =IFERROR(Saraksts[DAUDZ.]*Saraksts[VIENĪBAS CENA],"") -> 1.13 EUR | K12: Lielās portobello
D13: Piens | E13: Piegāde mājās | F13: Piena produkti | G13: 2 | H13: litri | I13: 3.99 EUR | J13: =IFERROR(Saraksts[DAUDZ.]*Saraksts[VIENĪBAS CENA],"") -> 7.98 EUR | M13: =aprēķini!M3 -> CITI KOPĀ
D14: Siers | E14: Piegāde mājās | F14: Piena produkti | G14: 1 | H14: kg | I14: 9.99 EUR | J14: =IFERROR(Saraksts[DAUDZ.]*Saraksts[VIENĪBAS CENA],"") -> 9.99 EUR | K14: Dažādu izmēru siers | M14: =aprēķini!L3 -> 0
D15: Olas | E15: Piegāde mājās | F15: Piena produkti | G15: 2 | H15: skaits | I15: 3.50 EUR | J15: =IFERROR(Saraksts[DAUDZ.]*Saraksts[VIENĪBAS CENA],"") -> 7.00 EUR
D16: Biezpiens | E16: Piegāde mājās | F16: Piena produkti | G16: 1 | H16: 500 grami | I16: 3.89 EUR | J16: =IFERROR(Saraksts[DAUDZ.]*Saraksts[VIENĪBAS CENA],"") -> 3.89 EUR | M16: =aprēķini!M4 -> PĀRTIKAS PRECES KOPĀ
D17: Skābais krējums | E17: Piegāde mājās | F17: Piena produkti | G17: 1 | H17: 250 grami | I17: 2.99 EUR | J17: =IFERROR(Saraksts[DAUDZ.]*Saraksts[VIENĪBAS CENA],"") -> 2.99 EUR | M17: =Pārtikas_preču_kopsumma -> 271
D18: Jogurts | E18: Pārtikas preces | F18: Piena produkti | G18: 1 | H18: 500 grami | I18: 4.99 EUR | J18: =IFERROR(Saraksts[DAUDZ.]*Saraksts[VIENĪBAS CENA],"") -> 4.99 EUR | K18: Grieķu ar medu
D19: Liellopu gaļa | E19: Tirgus | F19: Gaļa | G19: 10 | H19: kg | I19: 7.99 EUR | J19: =IFERROR(Saraksts[DAUDZ.]*Saraksts[VIENĪBAS CENA],"") -> 79.90 EUR | K19: Šķiņķa šķēlēs ietītas filejas
D20: Atlantijas lasis | E20: Zivju tirgus | F20: Jūras veltes | G20: 6 | H20: kg | I20: 8.99 EUR | J20: =IFERROR(Saraksts[DAUDZ.]*Saraksts[VIENĪBAS CENA],"") -> 53.94 EUR
D21: Aļaskas krabju spīles | E21: Zivju tirgus | F21: Jūras veltes | G21: 5 | H21: kg | I21: 10.99 EUR | J21: =IFERROR(Saraksts[DAUDZ.]*Saraksts[VIENĪBAS CENA],"") -> 54.95 EUR

Sheet aprēķini
A1: *** Šī lapa paliek neredzama ***
K3: =SUM(Saraksts[KOPĀ])-SUM(K6:K9) -> 0.00 EUR | L3: =ROUND(K3,0) -> 0 EUR | M3: CITI KOPĀ
L4: =ROUNDUP(SUM(Saraksts[KOPĀ]),0) -> 271 EUR | M4: PĀRTIKAS PRECES KOPĀ
E6: =IFERROR(INDEX(Saraksts[KATEGORIJA],MATCH(,COUNTIF($E$5:E5,Saraksts[KATEGORIJA]),)),"") -> Produkti | F6: =SUMIFS(Saraksts[KOPĀ],Saraksts[KATEGORIJA],E6) -> 44.875 | G6: =F6+ROW()/1000000 -> 44.875006 | H6: =LARGE($G$6:$G$21,1) -> 108.890009 | I6: =MATCH(H6,$G$6:$G$21,0) -> 4 | J6: =INDEX($E$6:$E$21,$I6) -> Jūras veltes | K6: =INDEX($F$6:$F$21,$I6) -> 108.89 EUR | L6: =ROUND(K6,0) -> 109 EUR | M6: =UPPER(J6) & " KOPĀ" -> JŪRAS VELTES KOPĀ
E7: =IFERROR(INDEX(Saraksts[KATEGORIJA],MATCH(,COUNTIF($E$5:E6,Saraksts[KATEGORIJA]),)),"") -> Piena produkti | F7: =SUMIFS(Saraksts[KOPĀ],Saraksts[KATEGORIJA],E7) -> 36.84 | G7: =F7+ROW()/1000000 -> 36.840007 | H7: =LARGE($G$6:$G$21,2) -> 79.900008 | I7: =MATCH(H7,$G$6:$G$21,0) -> 3 | J7: =INDEX($E$6:$E$21,$I7) -> Gaļa | K7: =INDEX($F$6:$F$21,$I7) -> 79.90 EUR | L7: =ROUND(K7,0) -> 80 EUR | M7: =UPPER(J7) & " KOPĀ" -> GAĻA KOPĀ
E8: =IFERROR(INDEX(Saraksts[KATEGORIJA],MATCH(,COUNTIF($E$5:E7,Saraksts[KATEGORIJA]),)),"") -> Gaļa | F8: =SUMIFS(Saraksts[KOPĀ],Saraksts[KATEGORIJA],E8) -> 79.9 | G8: 79.900008 | H8: =LARGE($G$6:$G$21,3) -> 44.875006 | I8: =MATCH(H8,$G$6:$G$21,0) -> 1 | J8: =INDEX($E$6:$E$21,$I8) -> Produkti | K8: =INDEX($F$6:$F$21,$I8) -> 44.88 EUR | L8: =ROUND(K8,0) -> 45 EUR | M8: =UPPER(J8) & " KOPĀ" -> PRODUKTI KOPĀ
E9: =IFERROR(INDEX(Saraksts[KATEGORIJA],MATCH(,COUNTIF($E$5:E8,Saraksts[KATEGORIJA]),)),"") -> Jūras veltes | F9: =SUMIFS(Saraksts[KOPĀ],Saraksts[KATEGORIJA],E9) -> 108.89 | G9: 108.890009 | H9: =LARGE($G$6:$G$21,4) -> 36.840007 | I9: =MATCH(H9,$G$6:$G$21,0) -> 2 | J9: =INDEX($E$6:$E$21,$I9) -> Piena produkti | K9: =INDEX($F$6:$F$21,$I9) -> 36.84 EUR | L9: =ROUND(K9,0) -> 37 EUR | M9: =UPPER(J9) & " KOPĀ" -> PIENA PRODUKTI KOPĀ
E10: =IFERROR(INDEX(Saraksts[KATEGORIJA],MATCH(,COUNTIF($E$5:E9,Saraksts[KATEGORIJA]),)),"") ->  | F10: =SUMIFS(Saraksts[KOPĀ],Saraksts[KATEGORIJA],E10) -> 0 | G10: 1e-05
E11: =IFERROR(INDEX(Saraksts[KATEGORIJA],MATCH(,COUNTIF($E$5:E10,Saraksts[KATEGORIJA]),)),"") ->  | F11: =SUMIFS(Saraksts[KOPĀ],Saraksts[KATEGORIJA],E11) -> 0 | G11: 1.1e-05
E12: =IFERROR(INDEX(Saraksts[KATEGORIJA],MATCH(,COUNTIF($E$5:E11,Saraksts[KATEGORIJA]),)),"") ->  | F12: =SUMIFS(Saraksts[KOPĀ],Saraksts[KATEGORIJA],E12) -> 0 | G12: 1.2e-05
E13: =IFERROR(INDEX(Saraksts[KATEGORIJA],MATCH(,COUNTIF($E$5:E12,Saraksts[KATEGORIJA]),)),"") ->  | F13: =SUMIFS(Saraksts[KOPĀ],Saraksts[KATEGORIJA],E13) -> 0 | G13: 1.3e-05
E14: =IFERROR(INDEX(Saraksts[KATEGORIJA],MATCH(,COUNTIF($E$5:E13,Saraksts[KATEGORIJA]),)),"") ->  | F14: =SUMIFS(Saraksts[KOPĀ],Saraksts[KATEGORIJA],E14) -> 0 | G14: 1.4e-05
E15: =IFERROR(INDEX(Saraksts[KATEGORIJA],MATCH(,COUNTIF($E$5:E14,Saraksts[KATEGORIJA]),)),"") ->  | F15: =SUMIFS(Saraksts[KOPĀ],Saraksts[KATEGORIJA],E15) -> 0 | G15: 1.5e-05
E16: =IFERROR(INDEX(Saraksts[KATEGORIJA],MATCH(,COUNTIF($E$5:E15,Saraksts[KATEGORIJA]),)),"") ->  | F16: =SUMIFS(Saraksts[KOPĀ],Saraksts[KATEGORIJA],E16) -> 0 | G16: 1.6e-05
E17: =IFERROR(INDEX(Saraksts[KATEGORIJA],MATCH(,COUNTIF($E$5:E16,Saraksts[KATEGORIJA]),)),"") ->  | F17: =SUMIFS(Saraksts[KOPĀ],Saraksts[KATEGORIJA],E17) -> 0 | G17: 1.7e-05
E18: =IFERROR(INDEX(Saraksts[KATEGORIJA],MATCH(,COUNTIF($E$5:E17,Saraksts[KATEGORIJA]),)),"") ->  | F18: =SUMIFS(Saraksts[KOPĀ],Saraksts[KATEGORIJA],E18) -> 0 | G18: 1.8e-05
E19: =IFERROR(INDEX(Saraksts[KATEGORIJA],MATCH(,COUNTIF($E$5:E18,Saraksts[KATEGORIJA]),)),"") ->  | F19: =SUMIFS(Saraksts[KOPĀ],Saraksts[KATEGORIJA],E19) -> 0 | G19: 1.9e-05
E20: =IFERROR(INDEX(Saraksts[KATEGORIJA],MATCH(,COUNTIF($E$5:E19,Saraksts[KATEGORIJA]),)),"") ->  | F20: =SUMIFS(Saraksts[KOPĀ],Saraksts[KATEGORIJA],E20) -> 0 | G20: 2e-05
E21: =IFERROR(INDEX(Saraksts[KATEGORIJA],MATCH(,COUNTIF($E$5:E20,Saraksts[KATEGORIJA]),)),"") ->  | F21: =SUMIFS(Saraksts[KOPĀ],Saraksts[KATEGORIJA],E21) -> 0 | G21: 2.1e-05
